Cogmind - Beta 17 @@@ ROGUE MODE // 2026.07.09 @ 16:26:29 Player: Nalesnig Result: Destroyed by H-77 Assassin with Coil Gun Performance ------------- Evolutions (6) 3000 Regions Visited (22) 4400 Robots Destroyed (210) 1050 Value Destroyed (9350) 9350 Prototype IDs (34) 680 Alien Tech Used (0) 0 Bonus (7093) 7093 TOTAL SCORE: 25573 Bonus ------- High Alert Combat Kills 705 Follower Combat Kills 1388 Entered Garrisons 1200 Used RIF Installer 3000 Entered DSFs 500 Met Data Miner 300 Cogmind --------- Core Integrity 0/1150 Matter 119/300 Energy 98/100 System Corruption 10% Temperature Cool (0) Movement Core (50) Location -4/Garrison Parts ------- > --- POWER (2) -------- (None) > --- PROPULSION (7) --- (None) > --- UTILITY (8) ------ (None) > --- WEAPON (2) ------- (None) > --- INVENTORY (5) ---- Improved Sensor Array Relay Coupler [Sentry] (29) Improved Heavy Machine Gun Hardcell Cannon Improved Proton Missile Launcher Peak State ------------ > --- POWER ------------ Micro Nuclear Core Light Antimatter Reactor > --- PROPULSION ------- Combat Gravmag System Combat Gravmag System Combat Gravmag System Combat Gravmag System Improved Gyrokinetic Inverter > --- UTILITY ---------- Advanced Heat Sink Medium Storage Unit Enhanced Optical Array Long-range Sensor Array Advanced Target Analyzer Improved Focal Shield Relay Coupler [NC] > --- WEAPON ----------- Mass Driver Carbide Saw > --- INVENTORY -------- Improved Sensor Array Relay Coupler [NC] Relay Coupler [Sentry] Advanced Plasma Cannon Improved Heavy Machine Gun KE Penetrator KE Penetrator Hardcell Cannon Improved Proton Missile Launcher Advanced Datajack [Rating: 90] Favorites ----------- Power Micro Nuclear Core Engine Deuterium Engine Power Core Micro Nuclear Core Reactor Light Antimatter Reactor Propulsion Light Treads Treads Light Treads Wheel Armored Huge Wheel Hover Unit Combat Gravmag System Flight Unit Improved VTOL Module Utility High-capacity Storage Unit Device Improved Heat Sink Storage High-capacity Storage Unit Processor Visual Processing Unit Hackware Relay Coupler [NC] Protection Improved Light Armor Plating Weapon Improved Light Cannon Energy Gun Small Laser Energy Cannon Advanced Plasma Cannon Ballistic Gun Enhanced Autogun Ballistic Cannon Improved Light Cannon Launcher Shock Bomb Launcher Special Weapon Remote Datajack Slashing Weapon Axe Special Melee Weapon Advanced Datajack Build | -11 -10 -9 -9 -8 -8 -8 -8 -7 -7 -7 -7 -6 -6 -6 -6 -5 -5 -5 -5 -5 -4 -4 ------- Run | Yrd Mat Mat Min Mat Gar Mat Gar Fac Gar Fac Gar Fac Low Low Dat Pro Fac Gar Fac DSF Fac Gar Slots Evolved 12 | . . 2 . 2 . . . 2 . . . 2 . . . . 2 . . . 2 . Power 1 | . . . . . . . . . . . . . . . . . . . . . 1 . Propulsion 5 | . . 1 . 1 . . . 1 . . . . . . . . 1 . . . 1 . Utility 6 | . . 1 . 1 . . . 1 . . . 2 . . . . 1 . . . . . Weapon . | . . . . . . . . . . . . . . . . . . . . . . . Parts Attached 153 | 7 1 13 3 3 8 9 12 10 19 4 11 11 2 . . 2 6 11 . 6 15 . Power 16 | 1 . 1 . 1 . 1 2 1 . . 2 . . . . 1 . 2 . . 4 . Engine 8 | 1 . 1 . 1 . 1 1 . . . 1 . . . . 1 . 1 . . . . Core 5 | . . . . . . . 1 1 . . 1 . . . . . . 1 . . 1 . Reactor 3 | . . . . . . . . . . . . . . . . . . . . . 3 . Propulsion 47 | 2 . 5 2 1 3 5 5 2 7 . 2 4 . . . . 2 1 . 5 1 . Treads 30 | 2 . 4 2 1 3 5 4 . 7 . 2 . . . . . . . . . . . Leg . | . . . . . . . . . . . . . . . . . . . . . . . Wheel 3 | . . . . . . . 1 2 . . . . . . . . . . . . . . Hover 6 | . . . . . . . . . . . . . . . . . . . . 5 1 . Flight 8 | . . 1 . . . . . . . . . 4 . . . . 2 1 . . . . Utility 54 | 2 1 4 . . 3 1 2 5 9 3 5 6 2 . . . 2 4 . 1 4 . Device 14 | 1 . 2 . . 1 . 1 2 . 1 . 1 . . . . 1 . . 1 3 . Storage 6 | 1 1 1 . . . . . . . 1 . 2 . . . . . . . . . . Processor 5 | . . . . . 1 . . 1 . . . . 1 . . . 1 . . . 1 . Hackware 23 | . . . . . . . . 2 7 1 5 3 1 . . . . 4 . . . . Protection 6 | . . 1 . . 1 1 1 . 2 . . . . . . . . . . . . . Artifact . | . . . . . . . . . . . . . . . . . . . . . . . Weapon 36 | 2 . 3 1 1 2 2 3 2 3 1 2 1 . . . 1 2 4 . . 6 . Energy Gun 2 | 1 . . . . . . . . . . . . . . . 1 . . . . . . Energy Cannon 1 | . . . . . . . . . . . . . . . . . 1 . . . . . Ballistic Gun 13 | 1 . . . . . 1 2 . 2 . 2 1 . . . . . 2 . . 2 . Ballistic Cannon 8 | . . 2 1 1 . 1 . 1 . . . . . . . . . . . . 2 . Launcher 4 | . . 1 . . 1 . 1 . . . . . . . . . . 1 . . . . Special Weapon 3 | . . . . . . . . 1 . 1 . . . . . . 1 . . . . . Impact Weapon . | . . . . . . . . . . . . . . . . . . . . . . . Slashing Weapon 4 | . . . . . 1 . . . 1 . . . . . . . . 1 . . 1 . Piercing Weapon . | . . . . . . . . . . . . . . . . . . . . . . . Special Melee Weapon 1 | . . . . . . . . . . . . . . . . . . . . . 1 . Unidentified Prototypes 6 | . . 1 . . 1 1 . 1 . . . 1 . . . . . 1 . . . . Corrupted Parts 1 | . . . . . . . . . . . . . . . . . . 1 . . . . System Corruption 4 | . . . . . . . . . . . . . . . . . . 4 . . . . Parts Lost 63 | . . 3 3 1 2 1 10 3 5 . 6 . . . . . . 7 . 6 16 . Power 11 | . . 1 . . . . 2 . . . 1 . . . . . . 3 . . 4 . Propulsion 21 | . . 2 2 . 2 . 4 2 1 . 1 . . . . . . 2 . 2 3 . Utility 14 | . . . . . . . 2 1 2 . 1 . . . . . . 1 . 3 4 . Weapon 17 | . . . 1 1 . 1 2 . 2 . 3 . . . . . . 1 . 1 5 . Highest Loss Streak 10 | . . 2 2 1 1 1 4 3 3 . 3 . . . . . . 3 . 4 10 . To Critical Strikes . | . . . . . . . . . . . . . . . . . . . . . . . Average Backups 16 | 2 4 16 19 19 19 19 17 19 19 21 22 11 10 10 10 10 9 9 10 9 9 5 Power . | . 1 1 1 2 1 . . . . . . . . . . . . . . . . . Propulsion 5 | 1 2 6 8 5 5 7 6 6 7 7 7 1 1 1 1 1 . . . . . . Utility 5 | . 1 1 2 2 3 4 5 8 8 9 11 6 6 6 6 6 5 4 4 3 2 2 Weapon 5 | . . 7 8 9 8 7 5 4 4 3 2 2 2 2 2 2 3 4 6 5 5 3 Tool/Special . | . . . . . . . . . . . . . . . . . . . . . . . Unused Backups 38 | . . 5 1 . 9 7 1 . 5 . . 4 . . . . 3 . . . 1 2 Power 6 | . . 1 . . 5 . . . . . . . . . . . . . . . . . Propulsion 8 | . . 1 1 . 1 3 . . . . . 1 . . . . 1 . . . . . Utility 12 | . . . . . 2 . 1 . 2 . . 3 . . . . 1 . . . 1 2 Weapon 12 | . . 3 . . 1 4 . . 3 . . . . . . . 1 . . . . . Tool/Special . | . . . . . . . . . . . . . . . . . . . . . . . Average Slot Usage (%) 89 | . 100 98 99 98 99 99 96 80 77 84 82 85 90 93 93 93 97 85 64 61 61 . Engine 4 | . 14 10 11 9 9 9 5 . . . . 6 6 6 6 6 5 2 . . . . Core 2 | . . . . . . . 2 7 7 7 5 . . . . . . 1 . . . . Treads 22 | . 28 32 32 35 35 36 34 13 15 23 23 1 . . . . . . . . . . Wheel 1 | . . . . . . . . 7 4 . . . . . . . . . . . . . Hover 1 | . . . . . . . . . . . . . . . . . . . . 13 23 . Flight 4 | . . . . . . . . . . . . 28 33 33 33 33 34 27 23 10 . . Device 8 | . 14 19 21 18 9 9 8 13 . 1 1 . . . . . 4 2 . 5 10 . Storage 8 | . 14 11 11 9 9 9 9 7 7 7 7 6 6 6 6 6 5 5 5 5 4 . Processor 5 | . . . . . 8 9 9 5 7 5 . . 4 6 6 6 5 5 5 5 8 . Hackware 8 | . . . . . . . . . 12 17 23 31 33 33 33 33 29 26 23 10 4 . Protection 4 | . . 2 . 8 9 9 9 6 5 5 4 1 . . . . . . . . . . Ballistic Gun 3 | . 14 1 . . . . 12 9 5 1 3 4 . . . . . . . 3 3 . Ballistic Cannon 6 | . . 19 21 18 17 17 4 . . . . . . . . . . . . . . . Special Weapon 2 | . . . . . . . . . 4 7 5 3 1 . . . 4 4 5 2 . . Slashing Weapon 2 | . . . . . . . . 4 3 5 4 . 4 6 6 . 3 4 . . . . Peak Build Rating 90 | 7 7 21 20 23 28 34 38 44 60 63 63 55 52 51 51 54 74 77 55 68 90 2 Average Rating 40 | 5 6 17 19 22 25 29 32 39 51 59 58 49 51 51 51 52 65 69 55 57 66 2 On Entrance 38 | . 7 7 20 20 23 26 32 38 40 58 62 49 50 51 51 51 54 74 55 55 54 2 Avg Prop Armor Cover (%) 9 | . . . . . . . 13 14 11 . . . . . . . . 2 4 3 7 . Naked Turns 68 | . . . . . . . . . . . . . . . . . . . . . 37 31 Heaviest Build 99 | 14 29 62 62 64 64 61 61 58 56 96 99 99 23 23 23 25 29 32 14 22 48 . Greatest Support 170 | 40 40 63 63 80 80 91 92 48 170 170 170 25 25 25 25 25 33 33 23 56 68 3 Greatest Overweight (x) 3 | 1 . 1 1 . 1 . 1 2 1 . 1 3 . . . . 1 1 . 1 . . Average Overweight (x) . | . . . . . . . . 1 . . . . . . . . . . . . . . Largest Inventory Capacity 25 | 8 15 20 20 20 20 20 20 20 20 25 25 25 10 10 10 10 10 10 10 10 10 5 Average Capacity 18 | 7 13 18 20 20 20 20 20 20 20 23 25 10 10 10 10 10 10 10 10 10 9 5 Most Carried 25 | 3 6 20 20 20 20 20 20 20 20 23 25 25 10 10 10 10 10 10 10 10 10 5 Average Carried 16 | 2 4 16 19 19 19 19 17 19 19 21 22 10 9 10 10 10 9 9 10 9 9 5 Final Capacity 25 | 8 15 20 20 20 20 20 20 20 20 25 25 10 10 10 10 10 10 10 10 10 5 5 Final Carried 25 | 3 6 20 19 20 20 20 20 20 20 23 25 10 10 10 10 10 10 10 10 10 5 5 Class Distribution -------------------- 34% | Mutant 28% | Bothacker-Mutant 21% | Scavenger-Mutant 10% | Botlord-Sprinter Dominant Class ---------------- Mutant | -10/Materials Mutant | -9/Materials Mutant | -9/Mines Scavenger-Mutant | -8/Materials Scavenger-Mutant | -8/Garrison Mutant | -8/Materials Mutant | -8/Garrison Scavenger-Mutant | -7/Factory Bothacker-Mutant | -7/Garrison Bothacker-Mutant | -7/Factory Bothacker-Mutant | -7/Garrison Botlord-Sprinter | -6/Factory Botlord-Sprinter | -6/Lower Caves Botlord-Sprinter | -6/Lower Caves Botlord-Sprinter | -6/Data Miner Botlord-Sprinter | -5/Proximity Caves Botlord-Sprinter | -5/Factory Bothacker-Sprinter | -5/Garrison Bothacker-Sprinter | -5/Factory Mutant | -5/DSF Mutant | -4/Factory Mutant | -4/Garrison Resources | -11 -10 -9 -9 -8 -8 -8 -8 -7 -7 -7 -7 -6 -6 -6 -6 -5 -5 -5 -5 -5 -4 -4 ----------- Run | Yrd Mat Mat Min Mat Gar Mat Gar Fac Gar Fac Gar Fac Low Low Dat Pro Fac Gar Fac DSF Fac Gar Matter Collected 6876 | 279 166 774 343 334 529 356 1091 255 1046 163 603 101 96 10 . 20 115 420 . 19 156 . Remotely . | . . . . . . . . . . . . . . . . . . . . . . . Salvage Created 7423 | 109 473 946 270 258 231 448 1270 381 950 375 411 101 . . . 117 115 457 . . 511 . Parts 423 | 5 24 76 28 18 23 25 57 21 44 12 31 4 . . . . 9 22 . . 24 . Haulers Intercepted 13 | . 2 6 . 1 . 3 . 1 . . . . . . . . . . . . . . Recyclers Shooed 10 | 1 1 2 . 1 . . . 2 . . . 1 . . . . . . . . 2 . Parts Field Recycled . | . . . . . . . . . . . . . . . . . . . . . . . Retrieved Matter . | . . . . . . . . . . . . . . . . . . . . . . . Parts Self-Destructed 24 | . . . . . . . . . . . . . 24 . . . . . . . . . Prevented 2 | . . . . . . . . . . . . . 2 . . . . . . . . . Parts Restored . | . . . . . . . . . . . . . . . . . . . . . . . Kills | -11 -10 -9 -9 -8 -8 -8 -8 -7 -7 -7 -7 -6 -6 -6 -6 -5 -5 -5 -5 -5 -4 -4 ------- Run | Yrd Mat Mat Min Mat Gar Mat Gar Fac Gar Fac Gar Fac Low Low Dat Pro Fac Gar Fac DSF Fac Gar Combat Hostiles Destroyed 162 | . 6 25 18 10 14 10 32 5 11 3 14 . . . . . 2 5 . . 7 . Melee 14 | . . . . . . . . . 2 3 2 . . . . . . 5 . . 2 . Guns 40 | . 6 . . . . . 16 4 6 . 7 . . . . . . . . . 1 . Cannons 67 | . . 19 10 10 7 10 9 . . . . . . . . . 2 . . . . . AOE 39 | . . 6 7 . 7 . 7 1 2 . 5 . . . . . . . . . 4 . Classes Destroyed 16 | 2 6 3 1 . 1 . 2 . 1 . . . . . . . . . . . . . Worker 9 | . 1 3 . . . 1 . 2 . 1 . . . . . . . . . . 1 . Builder 5 | . . 3 1 . . . . . . . . . . . . . . . . . 1 . Tunneler 4 | 1 . 1 . 1 . . . 1 . . . . . . . . . . . . . . Hauler 13 | . 2 6 . 1 . 3 . 1 . . . . . . . . . . . . . . Recycler 8 | 1 1 2 . . . . . 1 . 2 . 1 . . . . . . . . . . Mechanic 3 | . 1 . . . . 1 . . . 1 . . . . . . . . . . . . Watcher 4 | . 1 2 . . . 1 . . . . . . . . . . . . . . . . Swarmer 55 | . 1 8 11 4 6 2 10 3 6 . 4 . . . . . . . . . . . Cutter 7 | . . . . . 2 . . . . . 3 . . . . . . 2 . . . . Grunt 62 | . 5 11 6 2 3 4 15 1 2 2 4 . . . . . . 2 . . 5 . Brawler 1 | . . 1 . . . . . . . . . . . . . . . . . . . . Duelist 2 | . . . 1 . . . . . . . 1 . . . . . . . . . . . Sentry 19 | . . 5 . 4 3 4 1 . 2 . . . . . . . . . . . . . Demolisher 1 | . . . . . . . . . 1 . . . . . . . . . . . . . Hunter 7 | . . . . . . . 4 . 1 . . . . . . . . 1 . . 1 . Programmer 9 | . . . . . . . 2 1 . 1 2 . . . . . 2 . . . 1 . Thug 1 | . . . . . . 1 . . . . . . . . . . . . . . . . Best Kill Streak 7 | 2 2 6 7 5 3 4 5 2 3 2 6 1 . . . . 1 3 . . 6 . Combat Bots Only 6 | . 1 4 6 5 3 3 5 2 3 2 6 . . . . . 1 3 . . 5 . Max Kills in Single Turn 4 | 1 2 4 3 1 3 2 3 1 1 1 3 1 . . . . 1 1 . . 4 . Gunslinging . | . . . . . . . . . . . . . . . . . . . . . . . Exploded 4 | . . 3 3 . 3 . 3 1 1 . 3 . . . . . . . . . 4 . Melee 1 | . . . . . . . . . 1 1 1 . . . . . . 1 . . 1 . Uniques/NPCs Destroyed . | . . . . . . . . . . . . . . . . . . . . . . . Combat | -11 -10 -9 -9 -8 -8 -8 -8 -7 -7 -7 -7 -6 -6 -6 -6 -5 -5 -5 -5 -5 -4 -4 -------- Run | Yrd Mat Mat Min Mat Gar Mat Gar Fac Gar Fac Gar Fac Low Low Dat Pro Fac Gar Fac DSF Fac Gar Hostile Shots Fired 1328 | . 54 93 71 52 50 31 210 31 192 30 142 11 10 6 . . 14 68 . 51 164 48 Missed 475 | . 12 35 20 14 14 14 63 7 82 8 50 7 7 4 . . 7 31 . 21 62 17 Hits 853 | . 42 58 51 38 36 17 147 24 110 22 92 4 3 2 . . 7 37 . 30 102 31 Melee 13 | . . . 2 . 2 . . . . 2 1 . . . . . . 6 . . . . Projectile 840 | . 42 58 49 38 34 17 147 24 110 20 91 4 3 2 . . 7 31 . 30 102 31 AOE 14 | . . . . . 2 . . . 5 . 2 . . . . . . . . 1 . 4 Critical Strikes 33 | . . 1 2 3 5 . 1 . 2 3 4 . . . . . 1 3 . . 6 2 Damage Taken 13639 | . 506 686 568 425 595 251 2108 491 1571 392 1490 40 38 32 . . 121 853 . 781 2055 636 Core 2768 | . 107 67 76 68 23 29 244 47 197 64 256 24 . 32 . . 20 235 . 125 518 636 Absorbed by Shields 91 | . . . . . . . . . 22 . . . . . . . . 22 . 35 . 12 Ignored by Resistances 108 | . . . . . . . . . . . . . . . . . . . . . 108 . Regen/Repaired (Parts) 268 | . . . . . . 132 . . 136 . . . . . . . . . . . . . Core Remaining (%) 61 | 100 57 . 64 . . . 33 . . . 19 . . . . 93 . . . 62 . . Volleys Fired 786 | 3 55 77 30 30 46 42 97 28 69 19 54 7 . . . 138 21 46 . 1 23 . Largest 2 | 2 2 2 2 2 2 2 2 2 2 2 2 2 . . . 1 1 1 . 1 2 . Hottest 145 | 60 60 66 66 66 66 66 66 50 56 56 56 46 . . . 75 98 98 . 15 145 . Shots Fired 1182 | 6 108 151 56 60 67 84 181 42 84 22 74 9 . . . 138 21 46 . 1 32 . Gun 509 | 6 108 1 . . . . 98 34 47 5 47 4 . . . 138 . 3 . 1 17 . Cannon 506 | . . 148 52 60 59 84 77 . . . . . . . . . 11 6 . . 9 . Launcher 43 | . . 2 4 . 8 . 6 2 10 . 2 . . . . . . 3 . . 6 . Special 124 | . . . . . . . . 6 27 17 25 5 . . . . 10 34 . . . . Kinetic 802 | 3 55 149 52 60 59 84 175 34 47 5 47 4 . . . . . 3 . 1 24 . Thermal 213 | 3 53 . . . . . . . . . . . . . . 138 11 6 . . 2 . Explosive 19 | . . 2 4 . 4 . 2 2 3 . 2 . . . . . . . . . . . Electromagnetic 24 | . . . . . 4 . 4 . 7 . . . . . . . . 3 . . 6 . Robot Hit Streak 17 | 4 16 15 6 7 10 11 17 6 12 4 7 6 . . . 3 6 12 . . 6 . Robot Miss Streak 8 | . 3 5 2 3 2 3 2 2 6 4 8 3 . . . . 1 1 . 1 2 . Penetration Max 1 | . . . . . . . . . . . . . . . . . . . . . 1 . Secondary Targets 5 | . 1 . . . . . 1 . 1 . 2 . . . . . . . . . . . Max Gunslinging Chain 1 | . 1 . . . . . 1 . 1 . 1 . . . . . . . . . . . Shots Hit Robots 779 | 4 71 88 33 36 30 57 150 32 82 27 60 6 . . . 2 13 59 . . 29 . Core Hits 372 | 3 27 47 21 16 20 24 62 13 36 15 38 3 . . . 2 2 13 . 1 29 . Critical Kills . | . . . . . . . . . . . . . . . . . . . . . . . Critical Parts Destroyed 1 | . . . . . . . . . . . . . . . . . . . . . 1 . Critical Strikes 23 | . . 5 1 . 1 3 4 . 1 1 . . . . . . . 3 . . 4 . Destroy 1 | . . . . . . . . . . . . . . . . . . . . . 1 . Blast 14 | . . 5 1 . 1 3 4 . . . . . . . . . . . . . . . Sever 8 | . . . . . . . . . 1 1 . . . . . . . 3 . . 3 . Melee Attacks 234 | . . . . . 5 . 24 14 60 22 13 . 3 1 . 3 34 41 . . 14 . Impact . | . . . . . . . . . . . . . . . . . . . . . . . Slashing 234 | . . . . . 5 . 24 14 60 22 13 . 3 1 . 3 34 41 . . 14 . Piercing . | . . . . . . . . . . . . . . . . . . . . . . . Sneak Attacks 9 | . . . . . . . . 1 1 6 . . . . . . . . . . 1 . Combat Hostiles . | . . . . . . . . . . . . . . . . . . . . . . . Follow-up Attacks . | . . . . . . . . . . . . . . . . . . . . . . . Damage Inflicted 19509 | 43 917 2384 1201 782 1032 1278 3848 542 2577 768 1120 62 . . . 42 245 1165 . 26 1477 . Guns 3968 | 43 890 . . . . . 1055 404 392 73 662 62 . . . 42 . . . . 345 . Cannons 6695 | . . 2013 682 767 566 1278 1056 . . . . . . . . . 245 . . . 88 . Explosions 3644 | . . 329 508 . 466 . 571 42 388 . 346 . . . . . . 165 . . 829 . Melee 5081 | . . . . . . . 1166 96 1797 695 112 . . . . . . 1000 . . 215 . Ramming 121 | . 27 42 11 15 . . . . . . . . . . . . . . . 26 . . Kinetic 9841 | 21 441 2013 682 767 566 1278 2111 404 392 73 662 62 . . . . . . . . 369 . Thermal 866 | 22 449 . . . . . . . . . . . . . . 42 245 . . . 108 . Explosive 2754 | . . 329 508 . 466 . 345 42 260 . 346 . . . . . . . . . 458 . Electromagnetic 846 | . . . . . . . 226 . 128 . . . . . . . . 165 . . 327 . Impact . | . . . . . . . . . . . . . . . . . . . . . . . Slashing 5081 | . . . . . . . 1166 96 1797 695 112 . . . . . . 1000 . . 215 . Piercing . | . . . . . . . . . . . . . . . . . . . . . . . Highest Corruption 10 | . . . . 2 2 4 5 2 2 2 4 . . . . . 2 6 6 10 10 10 Average Corruption 2 | . . . . 1 2 3 4 1 2 1 3 . . . . . 1 5 6 9 6 10 Corruption Purged 2 | . . . . . . . . . . 2 . . . . . . . . . . . . Corruption Blocked . | . . . . . . . . . . . . . . . . . . . . . . . Effects 168 | . . . . 5 15 15 37 5 35 16 13 . . . . . 2 13 . 6 4 2 Message Errors 44 | . . . . 2 5 3 9 . 11 5 1 . . . . . . 4 . 3 . 1 Matter Fused 50 | . . . . 2 4 3 11 1 14 4 7 . . . . . . 3 . . 1 . Heat Flow Errors 21 | . . . . . 2 3 7 . 2 4 1 . . . . . . 1 . . 1 . Energy Discharges 22 | . . . . 1 2 2 4 3 2 2 2 . . . . . 1 2 . 1 . . Parts Rejected 2 | . . . . . . . . . 2 . . . . . . . . . . . . . Parts Fused 1 | . . . . . . . . . . . . . . . . . . 1 . . . . Data Loss (minor) 10 | . . . . . 1 1 2 . 2 . 1 . . . . . 1 1 . 1 . . Data Loss (major) 4 | . . . . . . 1 1 1 . . . . . . . . . 1 . . . . Misfires 6 | . . . . . 1 2 1 . 1 1 . . . . . . . . . . . . Alerts 4 | . . . . . . . 1 . 1 . 1 . . . . . . . . . 1 . Misdirections 2 | . . . . . . . . . . . . . . . . . . . . 1 . 1 Weapon Failures 2 | . . . . . . . 1 . . . . . . . . . . . . . 1 . Overload Shots . | . . . . . . . . . . . . . . . . . . . . . . . Overflow Damage 405 | . . 38 54 1 9 . 78 . 74 111 14 . . . . . . 26 . . . . Projectiles 37 | . . 8 28 1 . . . . . . . . . . . . . . . . . . Explosions 122 | . . 26 26 . 9 . 47 . . . 14 . . . . . . . . . . . Melee 246 | . . 4 . . . . 31 . 74 111 . . . . . . . 26 . . . . Knockbacks 71 | . . 15 15 2 8 7 23 . . . . . . . . . . . . . 1 . Impact 1 | . . 1 . . . . . . . . . . . . . . . . . . . . Kinetic 62 | . . 12 11 2 7 7 22 . . . . . . . . . . . . . 1 . Secondary 8 | . . 2 4 . 1 . 1 . . . . . . . . . . . . . . . Self-Inflicted Damage 262 | . . . 57 . 24 . 36 56 . . 56 . . . . . . . . 12 21 . Shots 7 | . . . 1 . 1 . 1 1 . . 1 . . . . . . . . . 2 . Rammed 21 | . 4 8 2 3 . . . . . . . . . . . . . . . 4 . . Targets Rammed 22 | . 4 9 2 3 . . . . . . . . . . . . . . . 4 . . Kicked . | . . . . . . . . . . . . . . . . . . . . . . . Crushed 1 | . . 1 . . . . . . . . . . . . . . . . . . . . Highest Temperature 262 | . 96 12 . 15 232 205 215 . 183 262 134 14 . . . 210 182 79 . . 90 . Average Temperature 58 | . 41 7 . 9 78 105 65 . 55 96 21 9 . . . 80 26 34 . . 27 . Received Heat Transfer 3147 | . 264 303 96 144 279 126 504 36 307 153 420 6 . . . . . 138 . 117 218 36 Siege Activations . | . . . . . . . . . . . . . . . . . . . . . . . Martial Activations . | . . . . . . . . . . . . . . . . . . . . . . . Shielding Activations . | . . . . . . . . . . . . . . . . . . . . . . . Robots Disrupted . | . . . . . . . . . . . . . . . . . . . . . . . Combat Hostiles . | . . . . . . . . . . . . . . . . . . . . . . . Robots Corrupted 3 | . . 1 1 . . . . . 1 . . . . . . . . . . . . . Combat Hostiles 2 | . . . 1 . . . . . 1 . . . . . . . . . . . . . Parts Fried 9 | . . 6 . . . . . . 2 . . . . . . . . . . . 1 . Impact Corruptions 3 | . . 1 2 . . . . . . . . . . . . . . . . . . . Robots Melted . | . . . . . . . . . . . . . . . . . . . . . . . Combat Hostiles . | . . . . . . . . . . . . . . . . . . . . . . . Parts Melted 4 | . . . . . . . . 2 . . . . . . . . 2 . . . . . Heat Transferred 1599 | 50 1025 . . . . . . . . . . . . . . 74 300 . . . 150 . Parts Sabotaged . | . . . . . . . . . . . . . . . . . . . . . . . Parts Stolen . | . . . . . . . . . . . . . . . . . . . . . . . Parts Stripped . | . . . . . . . . . . . . . . . . . . . . . . . Power Chain Reactions 2 | . . . . . 1 . . . . . . . . . . . . . . . 1 . Alert | -11 -10 -9 -9 -8 -8 -8 -8 -7 -7 -7 -7 -6 -6 -6 -6 -5 -5 -5 -5 -5 -4 -4 ------- Run | Yrd Mat Mat Min Mat Gar Mat Gar Fac Gar Fac Gar Fac Low Low Dat Pro Fac Gar Fac DSF Fac Gar Maximum Alert Level 4 | . . 1 . . 3 2 4 2 4 3 2 1 . . . . . 2 1 . . . Low Security (%) 39 | 100 100 83 100 100 10 4 10 . . 14 17 7 . . . . 100 47 . 100 100 100 Level 1 18 | . . 16 . . 21 92 10 23 9 19 35 92 . . . . . 32 100 . . . Level 2 26 | . . . . . 56 3 34 76 33 55 47 . . . . . . 20 . . . . Level 3 8 | . . . . . 12 . 23 . 28 10 . . . . . . . . . . . . Level 4 6 | . . . . . . . 21 . 27 . . . . . . . . . . . . . Level 5 . | . . . . . . . . . . . . . . . . . . . . . . . High Security . | . . . . . . . . . . . . . . . . . . . . . . . Max Security . | . . . . . . . . . . . . . . . . . . . . . . . Peak Influence 1484 | 5 81 274 154 149 742 409 1199 633 1484 779 471 247 . . . . 60 462 245 174 193 81 Initial 779 | . . 33 33 40 80 361 128 629 308 779 111 247 . . . . . 29 233 174 63 81 Average 381 | . 19 93 75 76 447 342 701 511 835 465 346 223 . . . . 27 230 237 148 25 81 Influence Increases 8536 | 10 295 779 447 345 762 371 1171 374 1426 342 560 108 24 84 . 4 272 727 16 88 331 . Destroy 0b10 Robot/C 3970 | . 120 500 360 200 380 220 640 140 500 180 325 . . . . . 30 255 . 15 105 . Destroy 0b10 Robot/NC 304 | 10 30 85 5 10 . 35 15 45 25 20 . 4 . . . 4 . 8 . . 8 . Destroy Leader 638 | . 46 126 60 62 20 70 50 32 20 50 38 . . . . . 8 32 . . 24 . Allied During Kill 238 | . . . . . 16 6 . 3 57 30 10 . . . . . . 115 . 1 . . Trap Triggered on 0b10 40 | . 10 . . 30 . . . . . . . . . . . . . . . . . . Successful Hack 265 | . 14 27 . 8 28 8 . 21 7 39 . 20 . . . . 78 11 4 . . . Select Force Hacks 30 | . 30 . . . . . . . . . . . . . . . . . . . . . Disable Machine 168 | . . 15 . . 30 15 . 60 . . . . . . . . 12 . . . 36 . Anti-Garrison Action 1326 | . . . . . 200 . 350 . 600 . 100 . . . . . . 76 . . . . Destroy Structure 504 | . . 26 22 5 88 2 26 43 97 8 15 . . . . . 72 50 . . 50 . Partial Spotted 75 | . . . . . . . . 15 . . . 12 . . . . 36 . 12 . . . Lose Combat Pursuer 978 | . 45 . . 30 . 15 90 15 120 15 72 72 24 84 . . 36 180 . 72 108 . Influence Decreases 8455 | 10 214 774 429 325 144 915 170 1132 383 1667 248 444 111 50 82 4 230 323 213 215 336 36 Entered New Map 2879 | . . 48 53 64 44 381 70 570 133 705 48 224 51 10 82 . . 13 213 75 59 36 Time Decay 3138 | 10 214 465 346 261 . 374 . 362 . 542 . 70 60 40 . 4 230 . . . 160 . Lost Part 568 | . . 21 30 . 20 10 100 30 50 . 60 . . . . . . 70 . 60 117 . Lost Ally 880 | . . . . . 80 . . 20 200 120 140 . . . . . . 240 . 80 . . Purge Threat 990 | . . 240 . . . 150 . 150 . 300 . 150 . . . . . . . . . . Squads Dispatched 22 | . 2 . . 2 . . . 4 . 6 . . . . . . 4 . . 2 2 . Investigation 5 | . 2 . . 1 . . . 1 . . . . . . . . 1 . . . . . Extermination 9 | . . . . . . . . 1 . 4 . . . . . . 2 . . . 2 . Reinforcement 6 | . . . . . . . . 2 . 1 . . . . . . 1 . . 2 . . Assault 1 | . . . . . . . . . . 1 . . . . . . . . . . . . Garrison 1 | . . . . 1 . . . . . . . . . . . . . . . . . . Intercept . | . . . . . . . . . . . . . . . . . . . . . . . Searches Triggered . | . . . . . . . . . . . . . . . . . . . . . . . Construction Impeded 1 | . . . . . . . . 1 . . . . . . . . . . . . . . Haulers Reinforced 1 | . . . . . . . . 1 . . . . . . . . . . . . . . Active Scanning Responses . | . . . . . . . . . . . . . . . . . . . . . . . Cargo Convoy Interrupts 1 | . . . . . . . . . . 1 . . . . . . . . . . . . Stealth | -11 -10 -9 -9 -8 -8 -8 -8 -7 -7 -7 -7 -6 -6 -6 -6 -5 -5 -5 -5 -5 -4 -4 --------- Run | Yrd Mat Mat Min Mat Gar Mat Gar Fac Gar Fac Gar Fac Low Low Dat Pro Fac Gar Fac DSF Fac Gar Distress Signals 12 | . 2 3 . 2 . 3 . 1 . . . . . . . . . . . . 1 . Communications Jammed 12 | . . . . . . . . . . 8 . 1 . . . . 3 . . . . . Distress Signals 12 | . . . . . . . . . . 8 . 1 . . . . 3 . . . . . Times Spotted 397 | . 18 32 18 19 17 17 36 13 46 19 34 11 8 5 . . 8 41 . 17 26 12 Peak Tracking Total 12 | . 4 4 6 8 3 4 8 4 7 3 7 4 6 4 . . 3 11 . 10 10 12 Tactical Retreats 41 | . 2 . . 2 . 1 2 1 6 1 5 2 1 2 . . 2 5 . 4 5 . Traps | -11 -10 -9 -9 -8 -8 -8 -8 -7 -7 -7 -7 -6 -6 -6 -6 -5 -5 -5 -5 -5 -4 -4 ------- Run | Yrd Mat Mat Min Mat Gar Mat Gar Fac Gar Fac Gar Fac Low Low Dat Pro Fac Gar Fac DSF Fac Gar Traps Triggered 23 | . 2 . . 1 . 1 1 2 3 2 . . . . . . . 6 . 1 3 1 Indirectly 4 | . . . . . . . . . . . . . . . . . . 3 . . 1 . Trap Hack Attempts . | . . . . . . . . . . . . . . . . . . . . . . . Triggered . | . . . . . . . . . . . . . . . . . . . . . . . Disarmed . | . . . . . . . . . . . . . . . . . . . . . . . Reprogrammed 11 | . 5 . . 6 . . . . . . . . . . . . . . . . . . Reused 4 | . 1 . . 3 . . . . . . . . . . . . . . . . . . Traps Extracted . | . . . . . . . . . . . . . . . . . . . . . . . Installed . | . . . . . . . . . . . . . . . . . . . . . . . Triggered 4 | . 1 . . 3 . . . . . . . . . . . . . . . . . . Machines | -11 -10 -9 -9 -8 -8 -8 -8 -7 -7 -7 -7 -6 -6 -6 -6 -5 -5 -5 -5 -5 -4 -4 ---------- Run | Yrd Mat Mat Min Mat Gar Mat Gar Fac Gar Fac Gar Fac Low Low Dat Pro Fac Gar Fac DSF Fac Gar Machines Disabled 30 | . . 1 . . 4 1 4 4 7 . 2 . 1 . . . 1 2 . . 3 . Max in Single Turn 2 | . . 1 . . 1 1 1 1 1 . 1 . 1 . . . 1 1 . . 2 . Garrison Access 3 | . . . . . . . . . . . . 1 . . . . 1 . . . 1 . Garrison Relay 16 | . . . . . 2 . 4 . 6 . 2 . . . . . . 2 . . . . Machines Repaired . | . . . . . . . . . . . . . . . . . . . . . . . Machines Dismantled . | . . . . . . . . . . . . . . . . . . . . . . . Machines Sabotaged . | . . . . . . . . . . . . . . . . . . . . . . . Overloaded Fab Kills . | . . . . . . . . . . . . . . . . . . . . . . . Hacking | -11 -10 -9 -9 -8 -8 -8 -8 -7 -7 -7 -7 -6 -6 -6 -6 -5 -5 -5 -5 -5 -4 -4 --------- Run | Yrd Mat Mat Min Mat Gar Mat Gar Fac Gar Fac Gar Fac Low Low Dat Pro Fac Gar Fac DSF Fac Gar Machines Accessed 98 | . 6 11 1 8 4 8 3 6 3 7 1 8 . 1 3 . 20 1 1 . 6 . Terminals 64 | . 5 8 . 6 4 3 3 5 3 5 1 5 . . . . 10 1 1 . 4 . Fabricators 2 | . . . . . . . . . . 1 . 1 . . . . . . . . . . Repair Stations 5 | . . 1 . . . 2 . . . . . . . . . . 2 . . . . . Recycling Units 10 | . 1 2 . . . 1 . . . . . 1 . . . . 5 . . . . . Scanalyzers 3 | . . . . 1 . 1 . . . . . . . . . . 1 . . . . . Garrison Access 9 | . . . . 1 . 1 . 1 . 1 . 1 . . . . 2 . . . 2 . Total Hacks 232 | . 16 32 1 23 5 17 5 15 3 15 1 15 . 1 24 . 43 1 3 . 12 . Successful 138 | . 8 19 1 12 3 8 . 8 2 8 . 10 . 1 24 . 27 1 1 . 5 . Failed 91 | . 8 13 . 10 2 8 5 7 1 7 1 5 . . . . 15 . 2 . 7 . Catastrophic 20 | . 1 2 . . . 4 . 4 1 2 1 3 . . . . 1 . . . 1 . Database Lockouts 3 | . . . . 1 . 1 . . . . . . . . . . 1 . . . . . Manual 76 | . 12 18 . 4 . 9 . 7 . 4 . 4 . . . . 13 . . . 5 . Terminals 150 | . 14 27 . 18 5 9 5 14 3 10 1 10 . . . . 20 1 3 . 10 . Fabricators 6 | . . . . . . . . . . 4 . 2 . . . . . . . . . . Repair Stations 7 | . . 1 . . . 3 . . . . . . . . . . 3 . . . . . Recycling Units 18 | . 2 4 . . . 1 . . . . . 2 . . . . 9 . . . . . Scanalyzers 16 | . . . . 4 . 3 . . . . . . . . . . 9 . . . . . Garrison Access 9 | . . . . 1 . 1 . 1 . 1 . 1 . . . . 2 . . . 2 . Terminal Hacks 77 | . 6 13 1 5 3 1 . 3 2 3 . 5 . 1 24 . 6 1 1 . 2 . Record 6 | . . . . . . . . . . . . . . . 6 . . . . . . . Part Schematic 11 | . . . . . . . . . . . . 1 . . 10 . . . . . . . Robot Schematic 5 | . . . . . . . . . . . . . . . 5 . . . . . . . Robot Analysis 2 | . 1 . . . . . . . . . . 1 . . . . . . . . . . Prototype ID Bank 11 | . 2 4 . 1 . . . . . . . . . . 3 . . . . . 1 . Open Door 3 | . . . 1 . . . . . 1 . . . . 1 . . . . . . . . Open DSF 1 | . . . . . . . . . . . . . . . . . . . 1 . . . Emergency Access Points 3 | . . . . . 1 . . . 1 . . . . . . . . 1 . . . . Alert Level 3 | . . 3 . . . . . . . . . . . . . . . . . . . . Unreport Threat 7 | . . 3 . . . 1 . 1 . 1 . 1 . . . . . . . . . . Locate Traps 14 | . 2 1 . 2 . . . 1 . 2 . 2 . . . . 3 . . . 1 . Reprogram Traps 2 | . 1 . . 1 . . . . . . . . . . . . . . . . . . Transport Status 1 | . . . . . . . . . . . . . . . . . 1 . . . . . Hauler Manifests 3 | . . 2 . . . . . . . . . . . . . . 1 . . . . . Zone Layout 3 | . . . . 1 . . . 1 . . . . . . . . 1 . . . . . Garrison Registry 1 | . . . . . 1 . . . . . . . . . . . . . . . . . Patrol Navigation 1 | . . . . . 1 . . . . . . . . . . . . . . . . . Fabricator Hacks 3 | . . . . . . . . . . 2 . 1 . . . . . . . . . . Network Status 2 | . . . . . . . . . . 1 . 1 . . . . . . . . . . Build 1 | . . . . . . . . . . 1 . . . . . . . . . . . . Repair Station Hacks 4 | . . . . . . 2 . . . . . . . . . . 2 . . . . . Scan Component 2 | . . . . . . 1 . . . . . . . . . . 1 . . . . . Repair 2 | . . . . . . 1 . . . . . . . . . . 1 . . . . . Recycling Unit Hacks 5 | . . . . . . . . . . . . 1 . . . . 4 . . . . . Retrieve Components 5 | . . . . . . . . . . . . 1 . . . . 4 . . . . . Scanalyzer 12 | . . . . 3 . 2 . . . . . . . . . . 7 . . . . . Insert Component 2 | . . . . . . . . . . . . . . . . . 2 . . . . . Analyze 2 | . . . . . . . . . . . . . . . . . 2 . . . . . Retrieve Study 8 | . . . . 3 . 2 . . . . . . . . . . 3 . . . . . Garrison Access Hacks 9 | . . . . 1 . 1 . 1 . 1 . 1 . . . . 2 . . . 2 . Unlock Access 6 | . . . . 1 . 1 . 1 . 1 . . . . . . 1 . . . 1 . Seal Access 3 | . . . . . . . . . . . . 1 . . . . 1 . . . 1 . Unauthorized Hacks 28 | . 2 6 . 3 . 2 . 4 . 2 . 2 . . . . 6 . . . 1 . Terminals 22 | . 1 3 . 3 . 2 . 4 . 2 . 2 . . . . 4 . . . 1 . Assimilate 1 | . . . . . . . . . . . . . . . . . 1 . . . . . Botnet 21 | . 1 3 . 3 . 2 . 4 . 2 . 2 . . . . 3 . . . 1 . Fabricators . | . . . . . . . . . . . . . . . . . . . . . . . Repair Stations 1 | . . 1 . . . . . . . . . . . . . . . . . . . . Mechanics 1 | . . 1 . . . . . . . . . . . . . . . . . . . . Recycling Units 5 | . 1 2 . . . . . . . . . . . . . . 2 . . . . . Monitor 2 | . . 1 . . . . . . . . . . . . . . 1 . . . . . Recyclers 2 | . . 1 . . . . . . . . . . . . . . 1 . . . . . Tunnel 1 | . 1 . . . . . . . . . . . . . . . . . . . . . Scanalyzers . | . . . . . . . . . . . . . . . . . . . . . . . Garrison Access . | . . . . . . . . . . . . . . . . . . . . . . . Data Cores Recovered . | . . . . . . . . . . . . . . . . . . . . . . . Used . | . . . . . . . . . . . . . . . . . . . . . . . Hacking Detections 73 | . 4 9 . 6 2 6 3 6 2 7 1 7 . . . . 14 1 . . 5 . Full Trace Events 6 | . . 1 . 1 . 1 1 1 . . . . . . . . 1 . . . . . Feedback Events 2 | . . . . 1 . . . 1 . . . . . . . . . . . . . . Corruption 2 | . . . . 1 . . . 1 . . . . . . . . . . . . . . Feedback Blocked . | . . . . . . . . . . . . . . . . . . . . . . . Robot Schematics Acquired 5 | . . . . . . . . . . . . . . . 5 . . . . . . . Robots Built 4 | . . . . . . . . . . 4 . . . . . . . . . . . . Authchips . | . . . . . . . . . . . . . . . . . . . . . . . Time 134 | . . . . . . . . . . 134 . . . . . . . . . . . . Total Robot Build Rating 16 | . . . . . . . . . . 16 . . . . . . . . . . . . Part Schematics Acquired 12 | . . . . . . . . . . . . 1 . . 10 . 1 . . . . . Parts Built . | . . . . . . . . . . . . . . . . . . . . . . . Authchips . | . . . . . . . . . . . . . . . . . . . . . . . Time . | . . . . . . . . . . . . . . . . . . . . . . . Total Part Build Rating . | . . . . . . . . . . . . . . . . . . . . . . . Part Studies Acquired 8 | . . . . 3 . 2 . . . . . . . . . . 3 . . . . . Parts Repaired 2 | . . . . . . 1 . . . . . . . . . . 1 . . . . . Time 132 | . . . . . . 32 . . . . . . . . . . 100 . . . . . Parts Recycled . | . . . . . . . . . . . . . . . . . . . . . . . Recycled Matter . | . . . . . . . . . . . . . . . . . . . . . . . Retrieved Matter . | . . . . . . . . . . . . . . . . . . . . . . . Retrieved Components 7 | . . . . . . . . . . . . . . . . . 7 . . . . . Parts Scanalyzed 1 | . . . . . . . . . . . . . . . . . 1 . . . . . Part Schematics Acquired 1 | . . . . . . . . . . . . . . . . . 1 . . . . . Parts Damaged 1 | . . . . . . . . . . . . . . . . . 1 . . . . . Bothacking | -11 -10 -9 -9 -8 -8 -8 -8 -7 -7 -7 -7 -6 -6 -6 -6 -5 -5 -5 -5 -5 -4 -4 ------------ Run | Yrd Mat Mat Min Mat Gar Mat Gar Fac Gar Fac Gar Fac Low Low Dat Pro Fac Gar Fac DSF Fac Gar Used RIF Installer 6 | . . . . . 1 . 1 . 1 . 1 . . . . . . 2 . . . . Coupler Efficiency 1 | . . . . . . . . . . . . . . . . . . 1 . . . . Command Fork 1 | . . . . . . . . . . . . . . . . . . 1 . . . . Threat Obfuscator 1 | . . . . . . . . . . . 1 . . . . . . . . . . . Signal Jammer 1 | . . . . . . . 1 . . . . . . . . . . . . . . . Watcher Feeds 1 | . . . . . . . . . 1 . . . . . . . . . . . . . Robots Hacked 55 | . . . . . . . . 4 16 6 12 2 . . . . 7 8 . . . . Non-combat 11 | . . . . . . . . 1 1 1 . 2 . . . . 6 . . . . . Combat 44 | . . . . . . . . 3 15 5 12 . . . . . 1 8 . . . . Robot Hacks Applied 58 | . . . . . . . . 5 17 7 12 2 . . . . 7 8 . . . . parse_system 5 | . . . . . . . . 1 . 1 2 . . . . . 1 . . . . . no_distress 1 | . . . . . . . . 1 . . . . . . . . . . . . . . drop_inventory 6 | . . . . . . . . . . . . 1 . . . . 5 . . . . . purge_threat 1 | . . . . . . . . . . 1 . . . . . . . . . . . . map_route 1 | . . . . . . . . . . . . 1 . . . . . . . . . . emergency_deploy 1 | . . . . . . . . . . 1 . . . . . . . . . . . . scatter_targeting 1 | . . . . . . . . . . 1 . . . . . . . . . . . . spike_heat 3 | . . . . . . . . 1 2 . . . . . . . . . . . . . overload_power 1 | . . . . . . . . . 1 . . . . . . . . . . . . . amplify_resonance 6 | . . . . . . . . 1 2 . 3 . . . . . . . . . . . wipe_record 2 | . . . . . . . . . 1 . . . . . . . 1 . . . . . go_dormant 1 | . . . . . . . . . . . . . . . . . . 1 . . . . overwrite_iff 10 | . . . . . . . . . 5 1 2 . . . . . . 2 . . . . formatsys_low 1 | . . . . . . . . . 1 . . . . . . . . . . . . . formatsys_high 18 | . . . . . . . . 1 5 2 5 . . . . . . 5 . . . . Relay Couplers Released 62 | . . . . . 6 . 13 . 27 . 9 . . . . . . 7 . . . . Machine Destruction 62 | . . . . . 6 . 13 . 27 . 9 . . . . . . 7 . . . . Attached 23 | . . . . . . . . 2 7 1 5 3 1 . . . . 4 . . . . Fabnet Peak Effective % . | . . . . . . . . . . . . . . . . . . . . . . . Robots Rewired 16 | . . . . . 5 . . . 2 . . . . . . . . 9 . . . . Allies Hacked 1 | . . . . . . . . . . . 1 . . . . . . . . . . . Hacks Repelled . | . . . . . . . . . . . . . . . . . . . . . . . Allies | -11 -10 -9 -9 -8 -8 -8 -8 -7 -7 -7 -7 -6 -6 -6 -6 -5 -5 -5 -5 -5 -4 -4 -------- Run | Yrd Mat Mat Min Mat Gar Mat Gar Fac Gar Fac Gar Fac Low Low Dat Pro Fac Gar Fac DSF Fac Gar Total Allies 49 | . . . . . 5 . . 1 13 7 7 . . . . . . 16 . . . . Largest Group 13 | . . . . . 3 1 . 1 5 4 1 . . . . . . 13 . . . . Highest-Rated Group 515 | . . . . . 56 31 . 21 123 50 32 . . . . . . 515 . . . . Highest-Rated Ally 49 | . . . . . 31 31 . 21 39 29 32 . . . . . . 49 . . . . Total Orders 14 | . . . . . . . . . 3 1 . . . . . . . . . 5 5 . STAY 3 | . . . . . . . . . 1 1 . . . . . . . . . . 1 . FOLLOW 1 | . . . . . . . . . 1 . . . . . . . . . . . . . AID 1 | . . . . . . . . . 1 . . . . . . . . . . . . . EXPLORE 8 | . . . . . . . . . . . . . . . . . . . . 4 4 . RETURN 1 | . . . . . . . . . . . . . . . . . . . . 1 . . Ally Attacks 285 | . . . . . 33 16 . 9 86 41 18 . . . . . . 53 . 29 . . Total Damage 5062 | . . . . . 284 271 . 688 1150 502 302 . . . . . . 1777 . 88 . . Kills 49 | . . . . . 5 2 . 6 14 6 3 . . . . . . 12 . 1 . . Allies Corrupted . | . . . . . . . . . . . . . . . . . . . . . . . Allies Melted 1 | . . . . . . . . . . . . . . . . . . 1 . . . . Intel | -11 -10 -9 -9 -8 -8 -8 -8 -7 -7 -7 -7 -6 -6 -6 -6 -5 -5 -5 -5 -5 -4 -4 ------- Run | Yrd Mat Mat Min Mat Gar Mat Gar Fac Gar Fac Gar Fac Low Low Dat Pro Fac Gar Fac DSF Fac Gar Active Infowar (turns) 9962 | 41 589 1209 795 607 2 . . 637 2199 1150 . . 92 81 18 518 585 591 8 133 707 . Optics 6719 | . . . . . . . . 637 2199 1150 . . 92 81 18 518 585 591 8 133 707 . Sensors 4 | . . . . . . . . . . . . . . . . . . . . . 4 . IFF 834 | . . . . . . . . . . . . . . . . . 548 286 . . . . Seismic 3699 | 41 589 1209 795 607 2 . . 456 . . . . . . . . . . . . . . Robot Analysis Total 2 | . 1 . . . . . . . . . . 1 . . . . . . . . . . Derelict Logs Recovered 5 | . . . 1 . . . . . . . . . 1 1 . 2 . . . . . . Drone Launches 12 | . . . . . . . . . . . . . . . . . . . . 12 . . Drone Recoveries 3 | . . . . . . . . . . . . . . . . . . . . 3 . . Exploration | -11 -10 -9 -9 -8 -8 -8 -8 -7 -7 -7 -7 -6 -6 -6 -6 -5 -5 -5 -5 -5 -4 -4 ------------- Run | Yrd Mat Mat Min Mat Gar Mat Gar Fac Gar Fac Gar Fac Low Low Dat Pro Fac Gar Fac DSF Fac Gar Turns Passed 15980 | 118 589 1590 854 607 1364 867 1643 831 2199 1543 791 148 124 81 18 518 585 591 8 133 747 31 Spaces Moved 11215 | 62 252 793 436 300 692 412 788 526 1143 869 366 395 478 331 77 470 1424 595 26 117 609 54 Core 131 | 3 . . . . . . . . . . . . . . . . . . . . 74 54 Treads 5731 | 59 252 793 436 300 692 412 736 . 816 869 366 . . . . . . . . . . . Legs . | . . . . . . . . . . . . . . . . . . . . . . . Wheels 905 | . . . . . . . 52 526 327 . . . . . . . . . . . . . Hover 580 | . . . . . . . . . . . . . . . . . . . . 45 535 . Flight 3868 | . . . . . . . . . . . . 395 478 331 77 470 1424 595 26 72 . . Fastest Speed 20 | 50 160 160 160 160 160 156 115 101 86 160 160 23 23 23 23 23 20 24 30 30 50 50 Average Speed 103 | 156 160 160 161 160 160 156 156 119 148 160 161 23 23 23 23 23 20 26 30 47 71 50 Slowest Speed 240 | 160 160 240 240 160 200 160 220 130 200 160 220 230 23 23 23 23 94 30 30 109 77 50 Overloaded Moves . | . . . . . . . . . . . . . . . . . . . . . . . Propulsion Burnouts . | . . . . . . . . . . . . . . . . . . . . . . . Robots Hopped 28 | . . . . . . . . . . . . 18 1 . . . 5 4 . . . . Potential Cave-ins 8 | . . . . . . . . . . . . . . . . 8 . . . . . . Cave-ins Triggered . | . . . . . . . . . . . . . . . . . . . . . . . Exploration Rate (%) 49 | 3 51 81 95 34 75 43 75 15 83 34 49 12 57 53 72 63 46 58 1 94 19 22 Regions Visited 22 Branch Regions 5 Pre-discovered Areas 3 | . 1 . . . . . . . . . . . . 1 1 . . . . . . . Known Exits Taken 7 | . . . . 1 . 1 . 1 . 1 . . . . . . 1 . 1 . 1 . Unknown Exits Taken 9 | 1 1 1 1 . . . . . . . . 1 1 1 1 1 . . . . . . Scrap Searched 13 | . . . 1 . . . . . . . . . 6 2 . 4 . . . . . . Spaces Dug 102 | . . . . . 2 . . 8 5 8 6 . 1 1 . 26 37 3 . . 5 . Terrain Destroyed 246 | . . 20 22 2 25 1 8 27 16 8 10 . 1 1 . 35 37 3 . . 30 . Melee 69 | . . . . . 2 . . 8 5 8 6 . 1 1 . 3 33 2 . . . . Projectile 62 | . . 6 4 2 . 1 . . . . . . . . . 32 4 1 . . 12 . AOE 115 | . . 14 18 . 23 . 8 19 11 . 4 . . . . . . . . . 18 . Terrain Rammed . | . . . . . . . . . . . . . . . . . . . . . . . Walls Destroyed . | . . . . . . . . . . . . . . . . . . . . . . . Machines Disabled . | . . . . . . . . . . . . . . . . . . . . . . . Actions | -11 -10 -9 -9 -8 -8 -8 -8 -7 -7 -7 -7 -6 -6 -6 -6 -5 -5 -5 -5 -5 -4 -4 --------- Run | Yrd Mat Mat Min Mat Gar Mat Gar Fac Gar Fac Gar Fac Low Low Dat Pro Fac Gar Fac DSF Fac Gar Total 14047 | 74 327 956 526 365 873 563 1004 670 1487 967 480 431 484 333 76 735 1640 925 25 192 856 58 Wait 1207 | . 11 18 45 24 21 72 60 70 135 40 21 11 . . . 122 134 186 . 48 189 . Move 11153 | 61 251 792 435 299 691 412 787 526 1142 869 365 366 475 330 76 469 1414 588 25 117 609 54 Hop 18 | . . . . . . . . . . . . 10 1 . . . 5 2 . . . . Pick Up 121 | 3 3 26 3 4 13 11 7 2 14 3 10 6 1 1 . . 10 3 . . 1 . Fast Attach 73 | 7 1 1 1 . 4 1 7 6 13 . 3 5 1 . . . 1 7 . 5 10 . Attach 57 | . . 4 3 3 1 1 6 1 7 . 6 7 1 . . . 4 6 . 2 5 . Detach 8 | . . . . . . . . . . . . 2 . . . . 1 3 . . 2 . Swap 128 | . 1 18 6 1 16 9 8 17 19 8 8 1 1 . . 2 8 2 . 1 2 . Drop 106 | . 1 11 1 1 16 15 5 6 18 1 . 16 1 1 . 1 8 . . 3 1 . Fire 786 | 3 55 77 30 30 46 42 97 28 69 19 54 7 . . . 138 21 46 . 1 23 . Melee 234 | . . . . . 5 . 24 14 60 22 13 . 3 1 . 3 34 41 . . 14 . Ram 3 | . . . . . . . . . . . . . . . . . . . . 3 . . Kick . | . . . . . . . . . . . . . . . . . . . . . . . Crush 18 | . 4 9 2 3 . . . . . . . . . . . . . . . . . . Escape Stasis 68 | . . . . . . . 3 . 10 . . . . . . . . 41 . 10 . 4 Rewire 65 | . . . . . 60 . . . . 5 . . . . . . . . . . . . Trap . | . . . . . . . . . . . . . . . . . . . . . . . Miscellaneous 2 | . . . . . . . . . . . . . . . . . . . . 2 . . Route ------- -11/Scrapyard -10/Materials (discovered 3 exits: *Mat x2 / [*Min]) -9/Materials (discovered 3 exits: *Mat x2 / *Min) -9/Mines (discovered 2 exits: *Mat x2) -8/Materials (discovered 3 exits: *Fac / [*Sto] / Gar) -8/Garrison (discovered 4 exits: *Mat x4) -8/Materials (discovered 4 exits: *Fac / [*Sto x2] / Gar) -8/Garrison (discovered 3 exits: *Fac x3) -7/Factory -7/Garrison (discovered 3 exits: *Fac x3) -7/Factory (discovered 3 exits: *Fac / [*Low] / Gar) -7/Garrison (discovered 2 exits: *Fac x2) -6/Factory -6/Lower Caves -6/Lower Caves -6/Data Miner -5/Proximity Caves -5/Factory (discovered 6 exits: *Fac x3 / *Upp x2 / Gar) -5/Garrison (discovered 2 exits: *Fac x2) -5/Factory -5/DSF -4/Factory (discovered 2 exits: [*Upp] / Gar) -4/Garrison History --------- Turn | Location | Event 9 | -11/Scrapyard | Discovered new exit (range 16) 119 | -11/Scrapyard | Entered Materials 159 | -10/Materials | Discovered new exit (range 13) 302 | -10/Materials | Discovered new exit (range 3) 311 | -10/Materials | Build established: Mutant 649 | -10/Materials | Discovered new exit (range 16) 708 | -10/Materials | Entered another Materials area 708 | -9/Materials | Evolved 2 slots: Propulsion x1, Utility x1 1069 | -9/Materials | Discovered new exit (range 14) 1510 | -9/Materials | Discovered new exit (range 16) 1844 | -9/Materials | Discovered new exit (range 11) 2298 | -9/Materials | Entered Mines 2789 | -9/Mines | A weapon hastily lodged in a ceiling crevice suddenly fell to the ground 2882 | -9/Mines | Discovered new exit (range 8) 2945 | -9/Mines | Found the Drone Emporium 2953 | -9/Mines | Found Prototype Device 3078 | -9/Mines | Build established: Scavenger-Mutant 3128 | -9/Mines | Learned 2 Materials zone layouts 3138 | -9/Mines | Discovered new exit (range 5) 3152 | -9/Mines | Entered Materials 3152 | -8/Materials | Evolved 2 slots: Propulsion x1, Utility x1 3289 | -8/Materials | Garrison activated, responded to threat 3432 | -8/Materials | Discovered new exit (range 14) 3544 | -8/Materials | Identified exit to Garrison 3560 | -8/Materials | Central database locked down 3644 | -8/Materials | Discovered new exit (range 16) 3759 | -8/Materials | Entered Garrison 3761 | -8/Garrison | Identified Thief Drone Bay 3772 | -8/Garrison | Triggered checkpoint 3892 | -8/Garrison | Triggered checkpoint 3967 | -8/Garrison | Triggered checkpoint 4039 | -8/Garrison | Discovered new exit (range 3) 4121 | -8/Garrison | Discovered new exit (range 14) 4157 | -8/Garrison | Triggered checkpoint 4241 | -8/Garrison | Lost 3 allies 4477 | -8/Garrison | Garrison Relay disabled 4598 | -8/Garrison | Triggered checkpoint 4652 | -8/Garrison | Discovered new exit (range 10) 4699 | -8/Garrison | Discovered new exit (range 49) 4699 | -8/Garrison | Discovered new exit (range 6) 4699 | -8/Garrison | Discovered new exit (range 50) 4699 | -8/Garrison | Discovered new exit (range 31) 4766 | -8/Garrison | Triggered checkpoint 4819 | -8/Garrison | Triggered checkpoint 4855 | -8/Garrison | Installed Relay Interface Framework 4946 | -8/Garrison | Garrison Relay disabled 5123 | -8/Garrison | Entered Materials 5123 | -8/Materials | Accompanied by 1 ally 5140 | -8/Materials | Discovered new exit (range 11) 5169 | -8/Materials | Central database locked down 5236 | -8/Materials | Discovered new exit (range 11) 5344 | -8/Materials | Repaired Imp. Light Cannon+ 5521 | -8/Materials | Discovered new exit (range 16) 5855 | -8/Materials | Build established: Mutant 5990 | -8/Materials | Identified exit to Garrison 5990 | -8/Materials | Entered Garrison 6036 | -8/Garrison | Triggered checkpoint 6074 | -8/Garrison | Expanded RIF knowledge: Signal Jamming 6097 | -8/Garrison | Garrison Relay disabled 6347 | -8/Garrison | Core integrity fell below 50% 6381 | -8/Garrison | Lost 3 parts (1p1n1u) 6436 | -8/Garrison | Triggered checkpoint 6445 | -8/Garrison | Discovered new exit (range 13) 6502 | -8/Garrison | Lost 4 parts (2n2w) 6571 | -8/Garrison | Garrison Relay disabled 6710 | -8/Garrison | Triggered checkpoint 6754 | -8/Garrison | Garrison Relay disabled 6791 | -8/Garrison | Discovered new exit (range 13) 6904 | -8/Garrison | Triggered checkpoint 7033 | -8/Garrison | Spotted B-75 Beast 7033 | -8/Garrison | Spotted B-75 Beast 7060 | -8/Garrison | Discovered new exit (range 15) 7211 | -8/Garrison | Triggered checkpoint 7283 | -8/Garrison | Garrison Relay disabled 7348 | -8/Garrison | Triggered checkpoint 7446 | -8/Garrison | Triggered checkpoint 7633 | -8/Garrison | Entered Factory 7633 | -7/Factory | Evolved 2 slots: Propulsion x1, Utility x1 7848 | -7/Factory | Build established: Scavenger-Mutant 8423 | -7/Factory | Build established: Bothacker-Mutant 8434 | -7/Factory | Lost 3 parts (2n1u) 8464 | -7/Factory | Identified exit to Garrison 8464 | -7/Factory | Entered Garrison 8472 | -7/Garrison | Expanded RIF knowledge: Watcher Feeds 8630 | -7/Garrison | Triggered checkpoint 8680 | -7/Garrison | Garrison Relay disabled 8737 | -7/Garrison | Triggered checkpoint 8741 | -7/Garrison | Triggered checkpoint 8848 | -7/Garrison | Discovered new exit (range 11) 8874 | -7/Garrison | Triggered checkpoint 8920 | -7/Garrison | Garrison Relay disabled 8924 | -7/Garrison | Triggered checkpoint 9404 | -7/Garrison | Garrison Relay disabled 9415 | -7/Garrison | Triggered checkpoint 9481 | -7/Garrison | Lost 3 allies 9529 | -7/Garrison | Discovered new exit (range 13) 9654 | -7/Garrison | Triggered checkpoint 9678 | -7/Garrison | Triggered checkpoint 9808 | -7/Garrison | Discovered new exit (range 16) 9935 | -7/Garrison | Lost 3 parts (1u2w) 10024 | -7/Garrison | Triggered checkpoint 10090 | -7/Garrison | Garrison Relay disabled 10252 | -7/Garrison | Triggered checkpoint 10294 | -7/Garrison | Garrison Relay disabled 10310 | -7/Garrison | Garrison Relay disabled 10663 | -7/Garrison | Entered Factory 10663 | -7/Factory | Accompanied by 1 ally 10719 | -7/Factory | Discovered new exit (range 25) 11063 | -7/Factory | First assault squad dispatched 11080 | -7/Factory | P-60 Hacker assimilated allied Smith 4a 11156 | -7/Factory | Fabricated S-27 Virus? 11656 | -7/Factory | Discovered new exit (range 12) 12196 | -7/Factory | Cargo convoy interrupted 12206 | -7/Factory | Identified exit to Garrison 12206 | -7/Factory | Entered Garrison 12234 | -7/Garrison | Triggered checkpoint 12259 | -7/Garrison | Garrison Relay disabled 12341 | -7/Garrison | Triggered checkpoint 12342 | -7/Garrison | Triggered checkpoint 12350 | -7/Garrison | Triggered checkpoint 12370 | -7/Garrison | Core integrity fell below 50% 12424 | -7/Garrison | Lost 3 parts (1p1u1w) 12437 | -7/Garrison | Lost 4 allies 12570 | -7/Garrison | Triggered checkpoint 12619 | -7/Garrison | Garrison Relay disabled 12695 | -7/Garrison | Expanded RIF knowledge: Threat Obfuscation 12717 | -7/Garrison | Discovered new exit (range 10) 12851 | -7/Garrison | Core integrity fell below 20% 12973 | -7/Garrison | Discovered new exit (range 15) 12994 | -7/Garrison | Build established: Botlord-Mutant 12997 | -7/Garrison | Entered Factory 12997 | -6/Factory | Evolved 2 slots: Utility x2 13112 | -6/Factory | Discovered new exit (range 4) 13145 | -6/Factory | Entered Lower Caves 13158 | -6/Lower Caves | Encountered a Warlord checkpoint 13189 | -6/Lower Caves | Learned Factory terminal intel 13243 | -6/Lower Caves | Spotted B-75 Beast 13249 | -6/Lower Caves | Discovered new exit (range 12) 13269 | -6/Lower Caves | Entered another Lower Caves area 13306 | -6/Lower Caves | Build established: Botlord-Sprinter 13341 | -6/Lower Caves | Discovered new exit (range 10) 13350 | -6/Lower Caves | Entered Data Miner 13350 | -6/Data Miner | Discovered new exit (range 6) 13354 | -6/Data Miner | Met Data Miner 13359 | -6/Data Miner | Learned location of Section 7 (-3) 13359 | -6/Data Miner | Acquired the access code to Warlord's prototype stash 13363 | -6/Data Miner | Received God Mode back door access code from Data Miner 13368 | -6/Data Miner | Entered Proximity Caves 13377 | -5/Proximity Caves | Spotted B-75 Beast 13390 | -5/Proximity Caves | Learned location of 1 exit from Factory 13853 | -5/Proximity Caves | Learned 4 Factory zone layouts 13854 | -5/Proximity Caves | Discovered new exit (range 6) 13863 | -5/Proximity Caves | Found DCF Scrap (11 items) 13886 | -5/Proximity Caves | Entered Factory 13886 | -5/Factory | Evolved 2 slots: Propulsion x1, Utility x1 13887 | -5/Factory | Identified exit to Upper Caves 13888 | -5/Factory | Identified exit to Factory 13889 | -5/Factory | Loaded intel: 26 terminal locations 13913 | -5/Factory | Discovered exit to Upper Caves (range 20) 13915 | -5/Factory | Watched by a mysterious "MATRIX" hacker 13922 | -5/Factory | Discovered exit to Factory (range 5) 14118 | -5/Factory | Central database locked down 14127 | -5/Factory | Discovered exit to Factory (range 17) 14331 | -5/Factory | Repaired Faulty Cld. Cesium-ion Thruster 14471 | -5/Factory | Identified exit to Garrison 14471 | -5/Factory | Entered Garrison 14559 | -5/Garrison | Triggered checkpoint 14615 | -5/Garrison | Garrison Relay disabled 14743 | -5/Garrison | Triggered checkpoint 14745 | -5/Garrison | Lost 4 allies 14756 | -5/Garrison | Spotted B-75 Beast 14779 | -5/Garrison | Triggered checkpoint 14787 | -5/Garrison | Discovered new exit (range 21) 14804 | -5/Garrison | Lost 5 allies 14811 | -5/Garrison | Lost 3 parts (1p1n1u) 14925 | -5/Garrison | Garrison Relay disabled 14939 | -5/Garrison | Triggered checkpoint 14974 | -5/Garrison | Discovered new exit (range 13) 14981 | -5/Garrison | Expanded RIF knowledge: Coupler Efficiency 15004 | -5/Garrison | Lost 3 parts (1p1n1w) 15040 | -5/Garrison | Expanded RIF knowledge: Command Fork 15062 | -5/Garrison | Entered Factory 15070 | -5/Factory | Identified exit to DSF 15070 | -5/Factory | Entered DSF 15095 | -5/DSF | System corruption reached 10% 15099 | -5/DSF | Additional patrols routed to DSF 15190 | -5/DSF | Lost 4 parts (2n1u1w) 15190 | -5/DSF | Discovered exit to Factory (range 15) 15203 | -5/DSF | Entered Factory 15203 | -4/Factory | Accompanied by 1 ally 15203 | -4/Factory | Evolved 2 slots: Power x1, Propulsion x1 15230 | -4/Factory | Lost 4 allies 15312 | -4/Factory | Discovered new exit (range 5) 15401 | -4/Factory | Build established: Mutant 15862 | -4/Factory | Lost 4 parts (2p1n1w) 15910 | -4/Factory | Released all parts (6) 15911 | -4/Factory | System corruption reached 10% 15940 | -4/Factory | Lost 10 parts (2p2n3u3w) 15950 | -4/Factory | Identified exit to Garrison 15950 | -4/Factory | Entered Garrison 15958 | -4/Garrison | Triggered checkpoint 15960 | -4/Garrison | Triggered checkpoint 15961 | -4/Garrison | Core integrity fell below 50% 15964 | -4/Garrison | Triggered checkpoint 15977 | -4/Garrison | Triggered checkpoint 15978 | -4/Garrison | Core integrity fell below 20% 15981 | -4/Garrison | Destroyed by H-77 Assassin with Coil Gun Last Messages --------------- 15956_ Field strength at 82. 15957_ Field strength at 76. 15958_ Beams of light sweep through the air. An alarm sounds. 15958_ Field strength at 70. 15960_ Beams of light sweep through the air. An alarm sounds. 15961_ Penetrated by Slug. 15964_ Critical hit (Burn: +37). 15964_ Penetrated by Slug. 15964_ Beams of light sweep through the air. An alarm sounds. 15966_ C-45 Heavy ARC bursts open, deploying its payload. 15966_ S-27 Virus unfolds itself. 15967_ The unstable cave ceiling collapses. 15971_ Slug penetrates Wall. 15971_ P-70 Sage resets Y-64 Sentinel, system corruption cleaned. 15977_ Penetrated by Slug. 15977_ Slug penetrates Wall. 15977_ Beams of light sweep through the air. An alarm sounds. 15981_ Penetrated by Slug. 15981_ Slug penetrates Reinforced Barrier. 15981_ Penetrated by Slug. Map ----- +----------------------------------------------------+ | ????????????????????????????????# ###### ## | | ????????????????????????????????# # | | ????????????????????????????????????#### #? | | ???????????????????????????????????????### #? | | ???????????????????????????????????????# #? | | ???????????????????????????????????????# ##? | | ???????????????????????????????????????## #?? | | ???????????????????????????????????????### ###?? | | ???????????????????????????????????????# #???? | | ???????????????????????????????????????# ####? | | ???????????????????????????????????????# #? | | ???????????????????????????????????????### #? | | ???????????????????????????????????????# ## | | ???????????????????????????????????????## # "" | | ???????????????????????????????????????# #" | | ???????????????????????????????????????### | | ???????????????????????????????????????# | | ????????????????????????????????? "+% # | | ????????????????????????????????# ###### " | | ???????????????????????????????????????### " | | ?????????????????????????????????????????# ###" | | ?????????????????????????????????????????# #??"" | | ?????????????????????????????????????????# #??## | | ?????????????????????#???????????????????# #???? | | ????????????????????## ##""""############ #???? | | ????????????????????# @ s #???? | | ????????????????????# s #???? | | ????????????????????# ss | | ????????????????????# ## ## ############### | | ????????????????????# ?# ## #?????????????? | | ????????????????????" ? ????????????? | | ????????????????????" h #???????????? | | ????????????????????" #???????????? | | ????????????????????" #???????????? | | ????????????????????# ## ##h ###???????????? | | ????????????????????# ?# ## #?????????????? | | ???????????????????? ?? ?????????????? | | ???????????????????? ?? ?????????????? | | ????????????????????? ?? ?????????????? | | ?????????????????????????#""""######?????????????? | | ?????????????????????????????????????????????????? | | ?????????????????????????????????????????????????? | | ?????????????????????????????????????????????????? | | ?????????????????????????????????????????????????? | | ?????????????????????????????????????????????????? | | ?????????????????????????????????????????????????? | | ?????????????????????????????????????????????????? | | ?????????????????????????????????????????????????? | | ?????????????????????????????????????????????????? | | ?????????????????????????????????????????????????? | +----------------------------------------------------+ Best States ------------- Heat Dissipation 62 Energy Generation 37 Energy Capacity 290 Matter Stores 300 Matter Capacity 500 Sight Range 22 Robot Scan Range 18 Terrain Scan Density 10 Armor Coverage 150 Resistance: KI 25 Evasion (%) 66 Targeting Accuracy 8 Target Analysis 8 Recoil Reduction 5 Particle Charging 20 Kinecelleration 30 Relay Coupler Types 4 Relay Coupler Value 100 Item Schematics ----------------- IFF Parser | -6/Factory | Hacked Combat Drone Bay | -6/Data Miner | Free Cld. Gravmag System | -6/Data Miner | Free Lgt. Regenerative Plating | -6/Data Miner | Free Prc. Matter Filter | -6/Data Miner | Free Plasma Sword | -6/Data Miner | Free Imp. Antigrav System | -6/Data Miner | Free Adv. Cryofiber Web | -6/Data Miner | Free Matter Neutralizer | -6/Data Miner | Free Nuclear Pulse Array | -6/Data Miner | Free Enh. Force Lance | -6/Data Miner | Free Cld. Cesium-ion Thruster | -5/Factory | Scanalyzed Robot Schematics ------------------ Y-54 Guardian | -6/Data Miner | Free M-22 Extractor | -6/Data Miner | Free S-27 Virus | -6/Data Miner | Free L-41 Fighter | -6/Data Miner | Free H-77 Assassin | -6/Data Miner | Free Fabricated ------------ S-27 Virus | x4 | -7/Factory | Preloaded Repaired ---------- Imp. Light Cannon | 2% | -8/Materials Cld. Cesium-ion Thruster | 99% | -5/Factory | Broken Studied --------- Lgt. Treads | -8/Materials | Hacked Imp. Light Cannon | -8/Materials | Hacked Shock Bomb Launcher | -8/Materials | Hacked Rocket Launcher | -8/Materials | Hacked Autogun | -8/Materials | Hacked Adv. Plasma Cannon | -5/Factory | Hacked Remote Datajack | -5/Factory | Hacked Axe | -5/Factory | Hacked Alien Tech Used ----------------- None Achievements -------------- Hack The Planet Hackerman Satisfying Versatile Challenges ------------ None Game ------ Seed AssembledHellfireFlail Manual? 0 Play Time 03:03:45 Cumulative 106.9 hours Start 2026.07.09 @ 12:07:27 End 2026.07.09 @ 16:26:29 Sessions 3 Manual Loads 0 Difficulty Rogue Special Mode None Game No. 93 Rogue 93 Adventurer 0 Explorer 0 Win Type - Total 5 Types 3/0/2/0/0/0/0/0/0/0 Lore% 66 Gallery% 52 Achievement% 46 Wizard Run 0 Options --------- Layout 1 ASCII 0 Keyboard 0 Movement Mouse Keybinds 0 Fullscreen 1 Font 32/SmallcapsGlow Map View 77x35 Zoom Use 0% Tactical HUD 1 Map Filters NONE Filters NONE Steam 1 RUN: 49ef7dd3-f6b9-4d7d-ac15-e0d8c2a1e44a